[Event "Live Chess"]
[Site "Chess.com"]
[Date "2024.06.02"]
[Round "-"]
[White "yarek"]
[Black "Pandreq"]
[Result "1-0"]
[WhiteElo "1757"]
[BlackElo "1208"]
[TimeControl "300"]
[EndTime "2:56:35 PDT"]
[Termination "yarek won by resignation"]

1. e4 {[%clk 0:04:55.3]} 1... Nf6 {[%clk 0:04:58.8]} 2. e5 {[%clk 0:04:49.2]}
2... Nd5 {[%clk 0:04:57.8]} 3. c4 {[%clk 0:04:46.6]} 3... Nb6 {[%clk 0:04:56.6]}
4. c5 {[%clk 0:04:46]} 4... Nd5 {[%clk 0:04:55.4]} 5. Bc4 {[%clk 0:04:45.5]}
5... c6 {[%clk 0:04:54.1]} 6. Nc3 {[%clk 0:04:42.5]} 6... e6 {[%clk 0:04:52.2]}
7. Ne4 {[%clk 0:04:38.6]} 7... g6 {[%clk 0:04:41.4]} 8. Bxd5 {[%clk 0:04:27.8]}
8... cxd5 {[%clk 0:04:38.4]} 9. Nf6+ {[%clk 0:04:25.8]} 9... Ke7 {[%clk
0:04:30.5]} 10. d4 {[%clk 0:04:21.5]} 10... Bg7 {[%clk 0:04:27.3]} 11. Bg5
{[%clk 0:04:18.5]} 11... Qa5+ {[%clk 0:04:12.8]} 12. Kf1 {[%clk 0:03:59.8]}
12... Kf8 {[%clk 0:03:54.5]} 13. Nf3 {[%clk 0:03:41.5]} 13... b6 {[%clk
0:03:48.2]} 14. cxb6 {[%clk 0:03:34.7]} 14... Ba6+ {[%clk 0:03:46.7]} 15. Kg1
{[%clk 0:03:31.4]} 15... Qxb6 {[%clk 0:03:43.5]} 16. b3 {[%clk 0:03:13.1]} 16...
d6 {[%clk 0:03:41.6]} 17. h4 {[%clk 0:02:53.2]} 17... dxe5 {[%clk 0:03:35.7]}
18. Nxe5 {[%clk 0:02:46.4]} 18... Bxf6 {[%clk 0:03:16]} 19. Bxf6 {[%clk
0:02:46.3]} 19... Rg8 {[%clk 0:03:15.1]} 20. h5 {[%clk 0:02:38.6]} 20... Nd7
{[%clk 0:03:12]} 21. Nxd7+ {[%clk 0:02:34]} 1-0

[Event "Live Chess"]
[Site "Chess.com"]
[Date "2024.06.02"]
[Round "-"]
[White "blunderabit"]
[Black "grillage"]
[Result "0-1"]
[WhiteElo "1748"]
[BlackElo "1865"]
[TimeControl "300"]
[EndTime "2:56:44 PDT"]
[Termination "grillage won on time"]

1. e4 {[%clk 0:04:57.2]} 1... d5 {[%clk 0:04:58.4]} 2. exd5 {[%clk 0:04:55.5]}
2... Qxd5 {[%clk 0:04:57.1]} 3. Nc3 {[%clk 0:04:53.6]} 3... Qd8 {[%clk 0:04:56]}
4. Bc4 {[%clk 0:04:49.6]} 4... Nf6 {[%clk 0:04:54.1]} 5. Nf3 {[%clk 0:04:42.1]}
5... a6 {[%clk 0:04:51.6]} 6. Ne5 {[%clk 0:04:37.1]} 6... e6 {[%clk 0:04:49.7]}
7. d4 {[%clk 0:04:34.6]} 7... Nbd7 {[%clk 0:04:48.7]} 8. Bf4 {[%clk 0:04:30.9]}
8... Nxe5 {[%clk 0:04:47]} 9. dxe5 {[%clk 0:04:22.2]} 9... Qxd1+ {[%clk
0:04:44.2]} 10. Rxd1 {[%clk 0:04:21.7]} 10... Nd7 {[%clk 0:04:42.8]} 11. a3
{[%clk 0:04:12.8]} 11... g6 {[%clk 0:04:40.8]} 12. O-O {[%clk 0:04:09.2]} 12...
Bg7 {[%clk 0:04:39.8]} 13. Rfe1 {[%clk 0:04:08.3]} 13... O-O {[%clk 0:04:38.2]}
14. Bg3 {[%clk 0:04:04.3]} 14... b5 {[%clk 0:04:29.6]} 15. Bd3 {[%clk
0:03:52.7]} 15... Nc5 {[%clk 0:04:24.6]} 16. f4 {[%clk 0:03:42.8]} 16... Nxd3
{[%clk 0:04:21.2]} 17. Rxd3 {[%clk 0:03:41.5]} 17... Bb7 {[%clk 0:04:11.4]} 18.
Red1 {[%clk 0:03:39.5]} 18... Bc6 {[%clk 0:03:55.5]} 19. Ne2 {[%clk 0:03:34.2]}
19... Be4 {[%clk 0:03:50.6]} 20. Rc3 {[%clk 0:03:28.2]} 20... c6 {[%clk
0:03:46.9]} 21. Rd4 {[%clk 0:03:22.5]} 21... Bd5 {[%clk 0:03:43.4]} 22. Nc1
{[%clk 0:03:16.3]} 22... Rfd8 {[%clk 0:03:41.3]} 23. b3 {[%clk 0:02:51.8]} 23...
Rac8 {[%clk 0:03:38.1]} 24. Nd3 {[%clk 0:02:48.9]} 24... Bf8 {[%clk 0:03:33.8]}
25. Bh4 {[%clk 0:02:41.9]} 25... Rd7 {[%clk 0:03:25.2]} 26. Nc5 {[%clk
0:02:25.6]} 26... Ra7 {[%clk 0:02:55.1]} 27. Bf6 {[%clk 0:02:23.2]} 27... Bg7
{[%clk 0:02:40.5]} 28. Bxg7 {[%clk 0:02:19.6]} 28... Kxg7 {[%clk 0:02:38.8]} 29.
Rcd3 {[%clk 0:02:14.2]} 29... a5 {[%clk 0:02:30.7]} 30. c4 {[%clk 0:02:11.5]}
30... bxc4 {[%clk 0:02:04.6]} 31. bxc4 {[%clk 0:02:09.9]} 31... Rb8 {[%clk
0:02:00.3]} 32. cxd5 {[%clk 0:02:06.2]} 32... cxd5 {[%clk 0:01:59.1]} 33. Rb3
{[%clk 0:02:02.6]} 33... Rc8 {[%clk 0:01:57.4]} 34. Nd3 {[%clk 0:01:53.7]} 34...
Rc2 {[%clk 0:01:54.3]} 35. Ra4 {[%clk 0:01:40.5]} 35... Rac7 {[%clk 0:01:44.3]}
36. Rxa5 {[%clk 0:01:36.1]} 36... Rd2 {[%clk 0:01:40.6]} 37. Rc5 {[%clk
0:01:23.9]} 37... Rxd3 {[%clk 0:01:34.2]} 38. Rxc7 {[%clk 0:01:22.3]} 38... Rxb3
{[%clk 0:01:33.1]} 39. Ra7 {[%clk 0:01:20.6]} 39... Rb2 {[%clk 0:01:30.3]} 40.
a4 {[%clk 0:01:18]} 40... Ra2 {[%clk 0:01:29.6]} 41. a5 {[%clk 0:01:16.5]} 41...
h6 {[%clk 0:01:26.5]} 42. a6 {[%clk 0:01:14.2]} 42... g5 {[%clk 0:01:25.3]} 43.
fxg5 {[%clk 0:00:55.9]} 43... hxg5 {[%clk 0:01:24]} 44. Ra8 {[%clk 0:00:53.4]}
44... Kg6 {[%clk 0:01:13.7]} 45. g4 {[%clk 0:00:29.3]} 45... Ra4 {[%clk
0:01:03.4]} 46. h3 {[%clk 0:00:25.2]} 46... Ra2 {[%clk 0:01:00.9]} 47. a7 {[%clk
0:00:22.5]} 47... Kg7 {[%clk 0:00:59.7]} 48. Kf1 {[%clk 0:00:19]} 48... Kh7
{[%clk 0:00:58.5]} 49. Ke1 {[%clk 0:00:15.1]} 49... Kg7 {[%clk 0:00:57.9]} 50.
Kd1 {[%clk 0:00:13.6]} 50... Kh7 {[%clk 0:00:57.5]} 51. Kc1 {[%clk 0:00:12.4]}
51... Kg7 {[%clk 0:00:57.1]} 52. Kb1 {[%clk 0:00:11.9]} 52... Ra6 {[%clk
0:00:55.8]} 53. Kb2 {[%clk 0:00:10.6]} 53... Kh7 {[%clk 0:00:54.4]} 54. Kb3
{[%clk 0:00:09.9]} 54... Kg7 {[%clk 0:00:54]} 55. Kb4 {[%clk 0:00:09.2]} 55...
Ra1 {[%clk 0:00:53.3]} 56. Kb5 {[%clk 0:00:07.3]} 56... Rb1+ {[%clk 0:00:52.7]}
57. Ka6 {[%clk 0:00:04.1]} 57... Ra1+ {[%clk 0:00:51.9]} 58. Kb7 {[%clk
0:00:02.3]} 58... Rb1+ {[%clk 0:00:51.5]} 59. Kc8 {[%clk 0:00:00.9]} 59... Ra1
{[%clk 0:00:51.1]} 0-1

[Event "Live Chess"]
[Site "Chess.com"]
[Date "2024.06.02"]
[Round "-"]
[White "MagnersCarlsberg2870"]
[Black "Bradfield133"]
[Result "0-1"]
[WhiteElo "1800"]
[BlackElo "1877"]
[TimeControl "300"]
[EndTime "2:56:46 PDT"]
[Termination "Bradfield133 won by resignation"]

1. d4 {[%clk 0:04:57.2]} 1... d6 {[%clk 0:04:57.7]} 2. Nf3 {[%clk 0:04:54.6]}
2... Bg4 {[%clk 0:04:55.4]} 3. e4 {[%clk 0:04:52.3]} 3... Nd7 {[%clk 0:04:51.7]}
4. Bc4 {[%clk 0:04:50.9]} 4... Ngf6 {[%clk 0:04:39]} 5. e5 {[%clk 0:04:47.4]}
5... dxe5 {[%clk 0:04:32.8]} 6. dxe5 {[%clk 0:04:46.4]} 6... Bxf3 {[%clk
0:04:18]} 7. Qxf3 {[%clk 0:04:40.5]} 7... Nxe5 {[%clk 0:04:16.7]} 8. Qxb7 {[%clk
0:04:38.2]} 8... Nxc4 {[%clk 0:04:07.9]} 9. Qc6+ {[%clk 0:04:35.7]} 9... Nd7
{[%clk 0:04:06]} 10. Qxc4 {[%clk 0:04:34.4]} 10... e6 {[%clk 0:04:03.4]} 11. O-O
{[%clk 0:04:32.8]} 11... Bd6 {[%clk 0:04:00.8]} 12. Nc3 {[%clk 0:04:30.4]} 12...
O-O {[%clk 0:03:56.5]} 13. Be3 {[%clk 0:04:24.3]} 13... Ne5 {[%clk 0:03:51.6]}
14. Qe2 {[%clk 0:04:19.1]} 14... Qh4 {[%clk 0:03:39.3]} 15. g3 {[%clk
0:04:13.6]} 15... Qh3 {[%clk 0:03:36.5]} 16. f4 {[%clk 0:04:12.2]} 16... Ng4
{[%clk 0:03:31.1]} 17. Ne4 {[%clk 0:04:03]} 17... Nxe3 {[%clk 0:03:07.5]} 18.
Qxe3 {[%clk 0:04:00.4]} 18... Be7 {[%clk 0:03:02.4]} 19. Rad1 {[%clk 0:03:57.6]}
19... Rab8 {[%clk 0:02:49.5]} 20. b3 {[%clk 0:03:55.7]} 20... a5 {[%clk
0:02:39.2]} 21. Rd7 {[%clk 0:03:53.5]} 21... Bd8 {[%clk 0:02:28.5]} 22. Rfd1
{[%clk 0:03:49.8]} 22... Qf5 {[%clk 0:02:21.7]} 23. Kg2 {[%clk 0:03:25.2]} 23...
Qb5 {[%clk 0:02:16.9]} 24. h4 {[%clk 0:03:14.4]} 24... a4 {[%clk 0:02:05.3]} 25.
Qd4 {[%clk 0:03:11.8]} 25... axb3 {[%clk 0:01:41.7]} 26. Rxd8 {[%clk 0:03:10.5]}
26... Rbxd8 {[%clk 0:01:40.7]} 27. Qxd8 {[%clk 0:03:09.2]} 27... Qe2+ {[%clk
0:01:39.6]} 28. Nf2 {[%clk 0:03:05.8]} 28... bxc2 {[%clk 0:01:32.5]} 0-1

[Event "Live Chess"]
[Site "Chess.com"]
[Date "2024.06.02"]
[Round "-"]
[White "TheSmoulderingMaster"]
[Black "AlanBstard10"]
[Result "1-0"]
[WhiteElo "1774"]
[BlackElo "1223"]
[TimeControl "300"]
[EndTime "2:56:48 PDT"]
[Termination "TheSmoulderingMaster won by resignation"]

1. e4 {[%clk 0:04:57.8]} 1... c5 {[%clk 0:04:55.6]} 2. Nf3 {[%clk 0:04:56.4]}
2... d6 {[%clk 0:04:55.1]} 3. d4 {[%clk 0:04:55.5]} 3... cxd4 {[%clk 0:04:53.4]}
4. Nxd4 {[%clk 0:04:53.8]} 4... Nf6 {[%clk 0:04:53.1]} 5. Nc3 {[%clk 0:04:53.1]}
5... g6 {[%clk 0:04:52.1]} 6. Be3 {[%clk 0:04:51.9]} 6... Bg7 {[%clk 0:04:51.7]}
7. f3 {[%clk 0:04:50.6]} 7... O-O {[%clk 0:04:51.2]} 8. Qd2 {[%clk 0:04:49.2]}
8... Bd7 {[%clk 0:04:49.3]} 9. O-O-O {[%clk 0:04:48.2]} 9... Nc6 {[%clk
0:04:48.4]} 10. g4 {[%clk 0:04:46.7]} 10... Nxd4 {[%clk 0:04:47]} 11. Bxd4
{[%clk 0:04:45.4]} 11... Rc8 {[%clk 0:04:45.5]} 12. h4 {[%clk 0:04:42.2]} 12...
h6 {[%clk 0:04:43.6]} 13. Be2 {[%clk 0:04:39.3]} 13... a6 {[%clk 0:04:37.3]} 14.
f4 {[%clk 0:04:37.8]} 14... e5 {[%clk 0:04:35.2]} 15. fxe5 {[%clk 0:04:33.6]}
15... dxe5 {[%clk 0:04:34.4]} 16. Bxe5 {[%clk 0:04:32.9]} 16... Bxg4 {[%clk
0:04:24.9]} 17. Bxf6 {[%clk 0:04:27.8]} 17... Qxd2+ {[%clk 0:04:20.7]} 18. Rxd2
{[%clk 0:04:26]} 18... Bxf6 {[%clk 0:04:18.6]} 19. Bxg4 {[%clk 0:04:24.1]} 19...
Bxc3 {[%clk 0:04:02.3]} 20. bxc3 {[%clk 0:04:21.8]} 20... Rxc3 {[%clk 0:04:00]}
21. h5 {[%clk 0:04:18.5]} 21... Rg3 {[%clk 0:03:56.8]} 22. Be2 {[%clk
0:04:13.7]} 22... gxh5 {[%clk 0:03:54.7]} 23. Rxh5 {[%clk 0:04:10.3]} 23... Rg1+
{[%clk 0:03:52.8]} 24. Rd1 {[%clk 0:04:08.2]} 24... Rg2 {[%clk 0:03:49.1]} 25.
Rxh6 {[%clk 0:04:05.2]} 25... Kg7 {[%clk 0:03:45.9]} 26. Bf3 {[%clk 0:03:58.8]}
26... Rf2 {[%clk 0:03:39.8]} 27. Rh3 {[%clk 0:03:55.1]} 27... Rc8 {[%clk
0:03:38.3]} 28. Rg1+ {[%clk 0:03:51.1]} 28... Kf8 {[%clk 0:03:36.7]} 29. Rh8+
{[%clk 0:03:47.4]} 29... Ke7 {[%clk 0:03:33.7]} 30. Rxc8 {[%clk 0:03:45.5]}
30... Rxf3 {[%clk 0:03:33.4]} 31. Rc4 {[%clk 0:03:42.9]} 31... Ra3 {[%clk
0:03:31.9]} 32. Kb2 {[%clk 0:03:39.8]} 1-0

[Event "Live Chess"]
[Site "Chess.com"]
[Date "2024.06.02"]
[Round "-"]
[White "KeithArkell"]
[Black "Duke_of_Bebington"]
[Result "1-0"]
[WhiteElo "2417"]
[BlackElo "1637"]
[TimeControl "300"]
[EndTime "2:56:50 PDT"]
[Termination "KeithArkell won by resignation"]

1. d4 {[%clk 0:04:57.8]} 1... Nf6 {[%clk 0:04:58.3]} 2. Nf3 {[%clk 0:04:56.4]}
2... d5 {[%clk 0:04:55.6]} 3. c4 {[%clk 0:04:55.6]} 3... c6 {[%clk 0:04:54.5]}
4. Nc3 {[%clk 0:04:54.5]} 4... dxc4 {[%clk 0:04:49.6]} 5. a4 {[%clk 0:04:52.9]}
5... a6 {[%clk 0:04:48.1]} 6. a5 {[%clk 0:04:51.7]} 6... Nd5 {[%clk 0:04:40.4]}
7. e4 {[%clk 0:04:49.6]} 7... Nxc3 {[%clk 0:04:38.6]} 8. bxc3 {[%clk 0:04:49]}
8... Bg4 {[%clk 0:04:37.3]} 9. Bxc4 {[%clk 0:04:48.1]} 9... e6 {[%clk
0:04:34.7]} 10. Qb3 {[%clk 0:04:45.8]} 10... Bxf3 {[%clk 0:04:13.5]} 11. gxf3
{[%clk 0:04:44.5]} 11... Qc7 {[%clk 0:04:08.4]} 12. e5 {[%clk 0:04:41.5]} 12...
Nd7 {[%clk 0:03:58.2]} 13. f4 {[%clk 0:04:36.2]} 13... b5 {[%clk 0:03:52.9]} 14.
axb6 {[%clk 0:04:34.8]} 14... Nxb6 {[%clk 0:03:51.8]} 15. Rxa6 {[%clk
0:04:28.5]} 15... Rxa6 {[%clk 0:03:48.3]} 16. Bxa6 {[%clk 0:04:28.4]} 16... Nd5
{[%clk 0:03:45.3]} 17. Bd2 {[%clk 0:04:27.2]} 17... Be7 {[%clk 0:03:41]} 18. O-O
{[%clk 0:04:23.5]} 18... O-O {[%clk 0:03:39.3]} 19. Qb7 {[%clk 0:04:23]} 19...
Rb8 {[%clk 0:03:21.2]} 20. Qxc7 {[%clk 0:04:21.8]} 20... Nxc7 {[%clk 0:03:20.4]}
21. Bc4 {[%clk 0:04:17.8]} 21... Rb2 {[%clk 0:03:13.6]} 22. Rd1 {[%clk
0:04:16.1]} 22... Nd5 {[%clk 0:03:11.7]} 23. Bxd5 {[%clk 0:04:15.2]} 23... cxd5
{[%clk 0:03:10.4]} 24. Kf1 {[%clk 0:04:14.7]} 24... Kf8 {[%clk 0:03:08.3]} 25.
Ke2 {[%clk 0:04:14]} 25... Ke8 {[%clk 0:03:07.7]} 26. Kd3 {[%clk 0:04:13.5]}
26... Kd7 {[%clk 0:03:07.1]} 27. Ra1 {[%clk 0:04:12.7]} 27... Rb7 {[%clk
0:03:04.3]} 28. h3 {[%clk 0:04:09.4]} 28... Kc6 {[%clk 0:03:03.4]} 29. Ra8
{[%clk 0:04:03.4]} 29... h5 {[%clk 0:02:56]} 30. Kc2 {[%clk 0:03:37.4]} 30... g6
{[%clk 0:02:49.7]} 31. Ra4 {[%clk 0:03:35.7]} 31... Rb5 {[%clk 0:02:38.4]} 32.
Ra7 {[%clk 0:03:33.9]} 32... Rb7 {[%clk 0:02:37.2]} 33. Ra4 {[%clk 0:03:32.6]}
33... Rb5 {[%clk 0:02:35.9]} 34. c4 {[%clk 0:03:32]} 34... dxc4 {[%clk
0:02:32.6]} 35. Rxc4+ {[%clk 0:03:31.1]} 35... Kd5 {[%clk 0:02:29]} 36. Rc7
{[%clk 0:03:29.6]} 36... Bb4 {[%clk 0:02:15.1]} 37. Bxb4 {[%clk 0:03:27]} 37...
Rxb4 {[%clk 0:02:14.1]} 38. Kc3 {[%clk 0:03:23.8]} 38... Ra4 {[%clk 0:02:09.7]}
39. Rxf7 {[%clk 0:03:16]} 39... Ke4 {[%clk 0:02:07]} 40. Rf6 {[%clk 0:03:13.8]}
40... Rxd4 {[%clk 0:02:04.9]} 41. Rxg6 {[%clk 0:03:05.6]} 41... Kxf4 {[%clk
0:02:03.7]} 42. Kxd4 {[%clk 0:03:04.4]} 42... Kf5 {[%clk 0:02:01.3]} 43. Rf6+
{[%clk 0:03:02.8]} 1-0

[Event "Live Chess"]
[Site "Chess.com"]
[Date "2024.06.02"]
[Round "-"]
[White "uselessduffer"]
[Black "AlexanderMatlak"]
[Result "1-0"]
[WhiteElo "2410"]
[BlackElo "2390"]
[TimeControl "300"]
[EndTime "2:56:52 PDT"]
[Termination "uselessduffer won by resignation"]

1. e4 {[%clk 0:04:56.4]} 1... c5 {[%clk 0:04:58.8]} 2. Nc3 {[%clk 0:04:54.9]}
2... Nc6 {[%clk 0:04:57.8]} 3. Bb5 {[%clk 0:04:53.9]} 3... Nd4 {[%clk 0:04:57]}
4. Nf3 {[%clk 0:04:52.4]} 4... e6 {[%clk 0:04:53]} 5. O-O {[%clk 0:04:49.4]}
5... a6 {[%clk 0:04:49.1]} 6. Bd3 {[%clk 0:04:47.3]} 6... d6 {[%clk 0:04:46.8]}
7. Nxd4 {[%clk 0:04:42.9]} 7... cxd4 {[%clk 0:04:46.7]} 8. Ne2 {[%clk
0:04:42.3]} 8... Qb6 {[%clk 0:04:46]} 9. c3 {[%clk 0:04:32.6]} 9... dxc3 {[%clk
0:04:44.1]} 10. bxc3 {[%clk 0:04:32.5]} 10... Nf6 {[%clk 0:04:42.6]} 11. Bc2
{[%clk 0:04:25.4]} 11... Be7 {[%clk 0:04:40]} 12. d4 {[%clk 0:04:24.3]} 12...
O-O {[%clk 0:04:39.1]} 13. h3 {[%clk 0:04:05.6]} 13... Qc7 {[%clk 0:04:34.5]}
14. Bd3 {[%clk 0:04:02.3]} 14... b5 {[%clk 0:04:33.4]} 15. Bd2 {[%clk
0:03:48.2]} 15... Bb7 {[%clk 0:04:32]} 16. Ng3 {[%clk 0:03:47.3]} 16... Rac8
{[%clk 0:04:24.9]} 17. Qe2 {[%clk 0:03:40.5]} 17... Rfe8 {[%clk 0:04:09.7]} 18.
f4 {[%clk 0:03:36.3]} 18... Qb8 {[%clk 0:03:25.7]} 19. e5 {[%clk 0:03:14.4]}
19... Nd5 {[%clk 0:03:19.4]} 20. Rac1 {[%clk 0:03:11.9]} 20... g6 {[%clk
0:03:15]} 21. f5 {[%clk 0:02:57.7]} 21... exf5 {[%clk 0:03:12]} 22. Nxf5 {[%clk
0:02:44.7]} 22... gxf5 {[%clk 0:02:42]} 23. Rxf5 {[%clk 0:02:42.5]} 23... dxe5
{[%clk 0:02:38.2]} 24. Qg4+ {[%clk 0:02:27.1]} 24... Kh8 {[%clk 0:02:34.9]} 25.
Rxf7 {[%clk 0:02:25.9]} 1-0

[Event "Live Chess"]
[Site "Chess.com"]
[Date "2024.06.02"]
[Round "-"]
[White "Frankie_Badacsonyi"]
[Black "juniortay"]
[Result "0-1"]
[WhiteElo "2399"]
[BlackElo "2378"]
[TimeControl "300"]
[EndTime "2:57:12 PDT"]
[Termination "juniortay won by resignation"]

1. d4 {[%clk 0:04:57.5]} 1... d5 {[%clk 0:04:58.5]} 2. c4 {[%clk 0:04:56.6]}
2... e6 {[%clk 0:04:57.4]} 3. Nf3 {[%clk 0:04:54]} 3... c5 {[%clk 0:04:56.6]} 4.
cxd5 {[%clk 0:04:52.8]} 4... exd5 {[%clk 0:04:56.5]} 5. g3 {[%clk 0:04:52.1]}
5... Nc6 {[%clk 0:04:56]} 6. Bg2 {[%clk 0:04:51.4]} 6... Nf6 {[%clk 0:04:54.1]}
7. O-O {[%clk 0:04:50.6]} 7... c4 {[%clk 0:04:53.3]} 8. b3 {[%clk 0:04:47.9]}
8... cxb3 {[%clk 0:04:51.2]} 9. Qxb3 {[%clk 0:04:46.2]} 9... Be7 {[%clk
0:04:44.8]} 10. Nc3 {[%clk 0:04:44.2]} 10... O-O {[%clk 0:04:43.3]} 11. Bg5
{[%clk 0:04:42.2]} 11... Na5 {[%clk 0:04:40.1]} 12. Qc2 {[%clk 0:04:24.6]} 12...
Be6 {[%clk 0:04:38.6]} 13. Ne5 {[%clk 0:04:13.4]} 13... Rc8 {[%clk 0:04:35.8]}
14. Qd3 {[%clk 0:04:02.6]} 14... h6 {[%clk 0:04:29.4]} 15. Bxf6 {[%clk
0:03:57.1]} 15... Bxf6 {[%clk 0:04:28.2]} 16. Rfc1 {[%clk 0:03:48.7]} 16... a6
{[%clk 0:04:19.7]} 17. Na4 {[%clk 0:03:39.1]} 17... Nc4 {[%clk 0:04:03.1]} 18.
Nf3 {[%clk 0:03:17.3]} 18... b5 {[%clk 0:03:59.5]} 19. Nc5 {[%clk 0:03:16]}
19... Rxc5 {[%clk 0:03:57.7]} 20. dxc5 {[%clk 0:03:13.7]} 20... Bxa1 {[%clk
0:03:56.2]} 21. Rxa1 {[%clk 0:03:13.6]} 21... Qc7 {[%clk 0:03:48.3]} 22. Nd4
{[%clk 0:02:22.9]} 22... Qxc5 {[%clk 0:03:46.2]} 23. e4 {[%clk 0:02:21]} 23...
dxe4 {[%clk 0:03:05.8]} 24. Qxe4 {[%clk 0:02:19.9]} 24... Re8 {[%clk 0:02:54]}
25. Nb3 {[%clk 0:02:03.2]} 25... Qc8 {[%clk 0:02:42.4]} 26. Qd4 {[%clk
0:01:59.6]} 26... Rd8 {[%clk 0:02:27.1]} 27. Qc3 {[%clk 0:01:46.2]} 27... Nd2
{[%clk 0:02:01.7]} 28. Qxc8 {[%clk 0:01:32.6]} 28... Bxc8 {[%clk 0:01:59.7]} 29.
Rd1 {[%clk 0:01:27.6]} 29... Be6 {[%clk 0:01:56]} 30. Rxd2 {[%clk 0:01:17.7]}
30... Rxd2 {[%clk 0:01:53.8]} 31. Nxd2 {[%clk 0:01:17.6]} 31... Bxa2 {[%clk
0:01:52.3]} 32. Bb7 {[%clk 0:01:14.4]} 32... a5 {[%clk 0:01:50.3]} 33. Bc6
{[%clk 0:01:13.7]} 33... b4 {[%clk 0:01:49.3]} 34. Ba4 {[%clk 0:01:12.7]} 34...
Kf8 {[%clk 0:01:45.6]} 35. Kf1 {[%clk 0:01:09]} 35... Ke7 {[%clk 0:01:43.6]} 36.
Ke2 {[%clk 0:01:07.7]} 36... Kd6 {[%clk 0:01:42.8]} 37. Kd3 {[%clk 0:01:06.9]}
37... Kc5 {[%clk 0:01:37.3]} 38. Ne4+ {[%clk 0:00:59.3]} 38... Kd5 {[%clk
0:01:34.4]} 39. Nd2 {[%clk 0:00:57.4]} 39... Kc5 {[%clk 0:01:33.3]} 40. f4
{[%clk 0:00:53.9]} 40... f5 {[%clk 0:01:27.2]} 41. Nf3 {[%clk 0:00:44.8]} 41...
Bb1+ {[%clk 0:01:24.8]} 42. Kd2 {[%clk 0:00:38.8]} 42... Ba2 {[%clk 0:01:17.3]}
43. Ne5 {[%clk 0:00:31.7]} 43... Kd4 {[%clk 0:01:09.1]} 44. Nc6+ {[%clk
0:00:30.5]} 44... Ke4 {[%clk 0:01:06.4]} 45. Ke2 {[%clk 0:00:27.6]} 45... b3
{[%clk 0:00:59.2]} 46. Bxb3 {[%clk 0:00:25.1]} 46... Bxb3 {[%clk 0:00:57.6]} 47.
Nxa5 {[%clk 0:00:25]} 47... Bd5 {[%clk 0:00:52.5]} 48. h3 {[%clk 0:00:23.2]}
48... h5 {[%clk 0:00:50.6]} 49. h4 {[%clk 0:00:19.5]} 49... Kd4 {[%clk
0:00:49.4]} 50. Kf2 {[%clk 0:00:19.1]} 50... Kc5 {[%clk 0:00:47.7]} 0-1

[Event "Live Chess"]
[Site "Chess.com"]
[Date "2024.06.02"]
[Round "-"]
[White "ShanthamGrarks"]
[Black "GwaryTek"]
[Result "1-0"]
[WhiteElo "1930"]
[BlackElo "1873"]
[TimeControl "300"]
[EndTime "2:57:48 PDT"]
[Termination "ShanthamGrarks won on time"]

1. d4 {[%clk 0:04:53]} 1... d5 {[%clk 0:04:57.3]} 2. Nc3 {[%clk 0:04:50.2]} 2...
Nf6 {[%clk 0:04:55.8]} 3. Bf4 {[%clk 0:04:42.7]} 3... c6 {[%clk 0:04:52.4]} 4.
f3 {[%clk 0:04:32.2]} 4... Nh5 {[%clk 0:04:44.8]} 5. Bg5 {[%clk 0:04:28.5]} 5...
h6 {[%clk 0:04:37.4]} 6. Bh4 {[%clk 0:04:19]} 6... g5 {[%clk 0:04:35.7]} 7. Bf2
{[%clk 0:04:17.8]} 7... Bg7 {[%clk 0:04:30.1]} 8. e3 {[%clk 0:04:14.4]} 8... Nf6
{[%clk 0:04:19.6]} 9. Bd3 {[%clk 0:04:12.2]} 9... Nbd7 {[%clk 0:04:07.8]} 10.
Nge2 {[%clk 0:04:08.9]} 10... e5 {[%clk 0:04:07]} 11. Qd2 {[%clk 0:03:56.9]}
11... Qb6 {[%clk 0:04:01]} 12. O-O-O {[%clk 0:03:54.2]} 12... exd4 {[%clk
0:03:51.1]} 13. exd4 {[%clk 0:03:49.6]} 13... Nf8 {[%clk 0:03:49.6]} 14. Ng3
{[%clk 0:03:45]} 14... Be6 {[%clk 0:03:38.5]} 15. Rhe1 {[%clk 0:03:42.6]} 15...
O-O-O {[%clk 0:03:35.2]} 16. Bf5 {[%clk 0:03:38.5]} 16... N6d7 {[%clk
0:03:25.6]} 17. Bxe6 {[%clk 0:03:36]} 17... Nxe6 {[%clk 0:03:13.7]} 18. Nf5
{[%clk 0:03:34.7]} 18... Bf8 {[%clk 0:03:06.3]} 19. Bg3 {[%clk 0:03:30.1]} 19...
Nf6 {[%clk 0:02:16.4]} 20. h4 {[%clk 0:03:17.2]} 20... Nh5 {[%clk 0:02:12.7]}
21. Be5 {[%clk 0:03:12.9]} 21... Rg8 {[%clk 0:02:02.8]} 22. g4 {[%clk
0:03:07.9]} 22... Nhf4 {[%clk 0:01:51.1]} 23. hxg5 {[%clk 0:03:05.9]} 23... hxg5
{[%clk 0:01:46.7]} 24. Bf6 {[%clk 0:03:03.8]} 24... Rd7 {[%clk 0:01:38.6]} 25.
Na4 {[%clk 0:02:45.7]} 25... Qb4 {[%clk 0:01:23.9]} 26. Qxb4 {[%clk 0:02:39.7]}
26... Bxb4 {[%clk 0:01:23.8]} 27. c3 {[%clk 0:02:38.6]} 27... Bf8 {[%clk
0:01:15.9]} 28. Nc5 {[%clk 0:02:37.6]} 28... Bxc5 {[%clk 0:01:02.5]} 29. dxc5
{[%clk 0:02:34.6]} 29... Nxc5 {[%clk 0:01:01.4]} 30. Ne7+ {[%clk 0:02:33.3]}
30... Rxe7 {[%clk 0:00:59.5]} 31. Bxe7 {[%clk 0:02:31.9]} 31... Ncd3+ {[%clk
0:00:56.2]} 32. Kd2 {[%clk 0:02:25.9]} 32... Nxe1 {[%clk 0:00:53.5]} 33. Rxe1
{[%clk 0:02:25.1]} 33... Ne6 {[%clk 0:00:38.2]} 34. Bd6 {[%clk 0:02:20.9]} 34...
Kd7 {[%clk 0:00:35.5]} 35. Be5 {[%clk 0:02:18.9]} 35... b6 {[%clk 0:00:07]} 36.
Rh1 {[%clk 0:02:13.9]} 36... Nc5 {[%clk 0:00:05.4]} 37. Rh7 {[%clk 0:02:08.3]}
37... Ke6 {[%clk 0:00:04.8]} 38. Bd4 {[%clk 0:02:05.8]} 38... Nd7 {[%clk
0:00:03.4]} 39. Rh6+ {[%clk 0:02:02.6]} 39... Rg6 {[%clk 0:00:02.7]} 40. Rh8
{[%clk 0:01:53.6]} 40... c5 {[%clk 0:00:00.9]} 41. Re8+ {[%clk 0:01:51.5]} 1-0